bitfinex/quotes_SOLUSD_20240905
["timestamp","ask_amount","ask_price","bid_price","bid_amount"]
[1725495313738,13.6933,134.16,134.12,46.49075508]
[1725495315519,13.6933,134.16,134.12,45.0]
[1725495315735,6.2391,134.16,134.1,18.6423]
[1725495315939,7.11116425,134.16,134.04,15.0219]
[1725495316239,7.4572,134.1,134.04,18.6505]
[1725495317541,7.4572,134.1,134.06,7.4593]
[1725495319736,13.4999,134.1,134.06,7.4593]
[1725495319942,7.4585,134.08,134.04,18.6505]
[1725495320934,7.4588,134.07,134.03,7.4605]
[1725495324855,23.09566425,134.06,133.92,103.0971]
[1725495325023,18.6518,134.04,133.96,7.4648]
[1725495325221,7.4622,134.01,133.96,7.4648]
[1725495326339,7.4622,134.01,133.97,45.0]
[1725495326724,7.4622,134.01,133.96,7.4648]
[1725495327338,7.4622,134.01,133.97,7.4642]
[1725495328030,7.4617,134.02,133.98,52.4637]
[1725495329945,7.4617,134.02,133.98,45.0]
[1725495330247,7.4617,134.02,133.98,52.4637]
[1725495330619,7.4611,134.03,133.98,52.4637]
[1725495330826,23.09566425,134.06,133.98,45.0]
[1725495331156,7.461,134.03,133.99,18.6574]
[1725495331721,7.461,134.03,133.99,26.1205]
[1725495334235,7.4607,134.04,134.0,8.95460365]
[1725495334445,7.4607,134.04,134.01,45.0]
[1725495334753,7.4607,134.04,134.0,7.4624]
[1725495336235,7.4612,134.03,133.99,18.6574]
[1725495336552,7.4612,134.03,134.0,45.0]
[1725495336870,7.4605,134.04,134.0,45.0]
[1725495337426,7.461,134.03,133.99,26.1205]
[1725495337853,7.4606,134.04,134.0,1.49219528]
[1725495338232,7.4606,134.04,133.99,26.1205]
[1725495339150,7.4602,134.05,134.0,52.4625]
[1725495339363,7.4602,134.05,134.01,7.462]
[1725495339740,29.6833,134.06,134.02,7.4615]
[1725495340859,29.6833,134.06,134.01,7.4619]
[1725495341030,29.6833,134.06,134.02,45.0]
[1725495342229,22.2236,134.06,134.02,52.461]
[1725495342434,22.2236,134.06,134.03,7.4609]
[1725495342638,16.2079,134.06,134.03,7.4609]
[1725495344949,7.4577,134.09,134.05,7.4597]
[1725495345136,7.4577,134.09,134.06,1.49147991]
[1725495345543,7.4577,134.09,134.05,7.4597]
[1725495346945,29.1101,134.1,134.06,52.4592]
[1725495348758,29.1101,134.1,134.06,45.0]
[1725495349070,7.4586,134.08,134.06,45.0]
[1725495349270,7.4586,134.08,134.05,45.0]
[1725495350151,29.1104,134.1,134.06,7.4593]
[1725495350457,29.1104,134.1,134.05,52.4597]
[1725495350458,7.4577,134.09,134.05,52.4597]
[1725495352067,21.6528,134.1,134.06,1.49148733]
[1725495352251,29.1103,134.1,134.06,7.4591]
[1725495353664,15.2821,134.1,134.05,45.0]
[1725495353873,15.2821,134.1,134.07,7.4587]
[1725495354173,7.4569,134.11,134.08,45.0]
[1725495354855,7.4562,134.12,134.08,52.4581]
[1725495356469,7.4566,134.11,134.08,45.0]
[1725495356653,7.4563,134.12,134.08,52.4581]
[1725495357061,7.4565,134.11,134.08,45.0]
[1725495358173,7.4565,134.11,134.09,1.49125032]
[1725495358380,7.4565,134.11,134.08,45.0]
[1725495358974,7.4565,134.11,134.09,1.49125641]
[1725495359378,7.4565,134.11,134.08,45.0]
[1725495363477,7.4562,134.12,134.08,52.4582]
[1725495364476,7.4565,134.11,134.08,45.0]
[1725495364686,22.2103,134.13,134.06,18.648]
[1725495364687,7.4578,134.09,134.06,18.648]
[1725495365584,7.4572,134.1,134.06,26.1073]
[1725495368668,0.87206425,134.12,134.02,22.717]
[1725495368982,7.4584,134.08,134.04,7.4602]
[1725495372589,7.4578,134.09,134.05,7.4598]
[1725495372884,0.87206425,134.12,134.05,18.6494]
[1725495373089,7.4569,134.11,134.07,7.4585]
[1725495373670,7.4569,134.11,134.08,1.49129069]
[1725495373873,7.4569,134.11,134.07,7.4585]
[1725495376585,7.4573,134.1,134.06,7.4593]
[1725495376781,7.4576,134.09,134.05,26.1089]
[1725495377181,0.87206425,134.11,134.04,7.4602]
[1725495377680,0.87206425,134.11,134.03,45.0]
[1725495377681,7.4587,134.07,134.03,52.4608]
[1725495379367,7.4587,134.07,134.04,7.4604]
[1725495379667,7.4584,134.08,134.04,7.4604]
[1725495386699,4.15815143,134.1,134.02,16.3457]
[1725495386700,0.87206425,134.07,134.02,16.3457]
[1725495386864,0.87206425,134.07,133.99,275.757]
[1725495387193,16.6617,134.06,133.99,18.657]
[1725495387374,0.87206425,134.05,133.99,18.657]
[1725495387783,6.0495,134.04,133.96,18.6613]
[1725495387970,7.4636,133.99,133.94,7.4656]
[1725495388394,7.4636,133.99,133.95,7.4653]
[1725495389882,7.4626,134.0,133.96,8.95741137]
[1725495390081,7.4626,134.0,133.97,45.0]
[1725495394002,16.4349,134.01,133.97,63.6604]
[1725495395005,23.8974,134.01,133.97,63.6604]
[1725495395797,7.4628,134.0,133.97,63.6604]
[1725495396176,7.4628,134.0,133.97,45.0]
[1725495396375,7.4628,134.0,133.96,7.4647]
[1725495396595,7.4632,133.99,133.95,7.4653]
[1725495396783,7.4632,133.99,133.96,45.0]
[1725495396994,7.4632,133.99,133.95,7.4653]
[1725495400203,7.4632,133.99,133.94,18.664]
[1725495400204,7.464,133.98,133.94,18.664]
[1725495400506,7.4633,133.99,133.95,52.4654]
[1725495401493,7.4633,133.99,133.96,1.4926074]
[1725495401697,7.4628,134.0,133.96,8.9573074]
[1725495402010,7.4616,134.02,133.98,7.4634]
[1725495402178,7.4616,134.02,133.97,52.4642]
[1725495404583,7.4616,134.02,133.98,7.4637]
[1725495404785,6.92156425,134.04,133.98,7.4637]
[1725495404999,23.0937,134.05,133.99,46.49212961]
[1725495405510,6.4081,134.08,134.0,45.0]
[1725495405685,6.4081,134.08,134.01,1.49173678]
[1725495405890,6.4081,134.08,134.02,1.49171925]
[1725495406085,6.4081,134.08,133.99,1.49171463]
[1725495406285,13.8667,134.08,134.03,7.4608]
[1725495406499,13.8667,134.08,134.04,1.49171295]
[1725495406986,7.4588,134.07,134.04,1.49171295]
[1725495407186,7.4588,134.07,134.03,7.4608]
[1725495407614,13.8664,134.08,134.04,8.9521546]
[1725495407910,16.5924,134.09,134.04,18.6507]
[1725495408087,16.5924,134.09,134.05,45.0]
[1725495409425,24.0502,134.09,134.05,52.4597]
[1725495412016,7.4578,134.09,134.05,52.4597]
[1725495413811,7.4584,134.08,134.05,45.0]
[1725495413998,7.4584,134.08,134.04,18.6507]
[1725495415110,7.4584,134.08,134.04,26.1107]
[1725495415416,7.4584,134.08,134.05,45.0]
[1725495415620,7.4584,134.08,134.04,26.1107]
[1725495418115,7.4588,134.07,134.04,18.6507]
[1725495420522,7.4584,134.08,134.04,18.6507]
[1725495421218,7.459,134.07,134.03,7.4609]
[1725495421409,7.459,134.07,134.04,45.0]
[1725495421608,7.459,134.07,134.03,7.4609]
[1725495422327,7.4583,134.08,134.04,7.4604]
[1725495422525,7.4575,134.1,134.05,53.95106228]
[1725495423325,7.4566,134.11,134.05,65.14116228]
[1725495423620,7.4566,134.11,134.06,1.4913309]
[1725495423829,7.4566,134.11,134.07,7.4587]
[1725495424010,7.4566,134.11,134.08,1.49135212]
[1725495425214,0.87206425,134.14,134.08,1.49135212]
[1725495425420,0.87206425,134.14,134.1,7.4571]
[1725495425421,7.455,134.14,134.1,7.4571]
[1725495425724,7.455,134.14,134.09,26.1013]
[1725495425929,7.455,134.14,134.1,45.0]
[1725495426608,7.455,134.14,134.1,52.457]
[1725495428309,7.4543,134.15,134.11,8.94747736]
[1725495428512,7.4539,134.16,134.11,1.49097736]
[1725495429229,7.4539,134.16,134.11,8.94727736]
[1725495430121,7.4545,134.15,134.11,7.4563]
[1725495430324,0.87206425,134.17,134.1,45.0]
[1725495430539,18.6349,134.16,134.06,25.1766]
[1725495430711,7.4561,134.12,134.07,7.4584]
[1725495431324,7.4561,134.12,134.08,8.94922202]
[1725495431824,7.4556,134.13,134.08,8.94922202]
[1725495432216,7.4549,134.14,134.1,7.4571]
[1725495432608,7.4544,134.15,134.1,7.4571]
[1725495432932,7.4544,134.15,134.11,52.4565]
[1725495435637,7.4544,134.15,134.12,1.49078184]
[1725495435930,16.52936425,134.18,134.12,18.6396]
[1725495436129,15.6573,134.18,134.13,52.4554]
[1725495436334,23.1101,134.18,134.14,8.94537464]
[1725495436632,23.1101,134.18,134.14,7.4548]
[1725495437437,7.4528,134.18,134.15,1.49057612]
[1725495439108,7.4528,134.18,134.14,7.4548]
[1725495439314,7.4528,134.18,134.15,1.49053407]
[1725495439640,7.4523,134.19,134.15,46.49053407]
[1725495440830,7.4523,134.19,134.15,45.0]
[1725495442248,7.4511,134.21,134.16,1.4904173]
[1725495442426,0.87206425,134.24,134.16,1.4904173]
[1725495443020,7.4506,134.22,134.17,7.453]
[1725495443340,7.4506,134.22,134.18,46.49006638]
[1725495443834,7.4506,134.22,134.18,53.94266638]
[1725495444336,7.4506,134.22,134.18,46.49006638]
[1725495444709,22.72645116,134.25,134.18,46.49006638]
[1725495444710,0.8725005,134.25,134.19,1.49004684]
[1725495444909,0.8725005,134.25,134.22,7.4501]
[1725495445117,0.8725005,134.25,134.23,1.48965944]
[1725495445345,0.8725005,134.25,134.23,45.0]
[1725495446120,0.8725005,134.25,134.23,52.4498]
[1725495446321,0.8725005,134.25,134.24,1.48945404]
[1725495446626,0.8725005,134.25,134.24,8.93875404]
[1725495446835,0.8725005,134.25,134.24,53.93875404]
[1725495447844,0.8725005,134.25,134.24,52.4493]
[1725495448057,0.8725005,134.25,134.24,45.0]
[1725495448208,0.8725005,134.25,134.23,45.0]
[1725495449419,0.8725005,134.25,134.23,52.4497]
[1725495449626,0.8725005,134.25,134.24,7.4493]
[1725495449813,0.8725005,134.25,134.24,52.4493]
[1725495450021,0.8725005,134.25,134.24,45.0]
[1725495450209,0.8725005,134.25,134.23,45.0]
[1725495450833,0.8725005,134.25,134.24,7.4493]
[1725495451040,0.8725005,134.25,134.24,52.4493]
[1725495452814,0.8725005,134.25,134.24,67.9391]
[1725495457140,0.8725005,134.25,134.24,117.9391]
[1725495459143,0.8725005,134.25,134.24,67.9391]
[1725495459518,0.8725005,134.25,134.24,117.9391]
[1725495460043,0.8725005,134.25,134.24,140.3891]
[1725495460246,0.8725005,134.25,134.24,117.9391]
[1725495461435,0.8725005,134.25,134.24,7.4493]
[1725495463134,0.8725005,134.25,134.24,52.4493]
[1725495468752,0.8725005,134.25,134.24,74.8993]
[1725495469049,0.8725005,134.25,134.24,52.4493]
[1725495469251,0.8725005,134.25,134.24,7.4493]
[1725495470556,0.8725005,134.25,134.24,52.4493]
[1725495471043,0.8725005,134.25,134.24,7.4493]
[1725495472644,0.8725005,134.25,134.24,52.4493]
[1725495473940,0.8725005,134.25,134.24,53.93857703]
[1725495476040,0.8725005,134.25,134.24,52.4493]
[1725495476936,0.8725005,134.25,134.24,53.93845352]
[1725495477355,0.8725005,134.25,134.24,52.4493]
[1725495477735,0.8725005,134.25,134.24,53.93846322]
[1725495478342,0.8725005,134.25,134.24,52.4493]
[1725495480858,0.8725005,134.25,134.24,76.388364]
[1725495481838,0.8725005,134.25,134.24,121.278364]
[1725495482151,0.8725005,134.25,134.24,135.3234]
[1725495483556,0.8725005,134.25,134.24,69.47227817]
[1725495484262,0.8725005,134.25,134.24,67.9834]
[1725495485235,0.8725005,134.25,134.24,52.4493]
[1725495485449,0.8725005,134.25,134.24,74.8993]
[1725495486740,0.8725005,134.25,134.24,74.8993]
[1725495488350,0.8725005,134.25,134.24,119.7893]
[1725495494548,0.8725005,134.25,134.24,7.4493]
[1725495496270,0.8725005,134.25,134.24,52.4493]
[1725495498254,0.8725005,134.25,134.24,7.4493]
[1725495499564,0.8725005,134.25,134.24,52.4493]
[1725495506356,0.8725005,134.25,134.24,53.9386103]
[1725495509158,0.8725005,134.25,134.24,102.4493]
[1725495512661,0.8725005,134.25,134.24,7.4493]
[1725495515172,0.8725005,134.25,134.23,7.4498]
[1725495516162,0.8725005,134.25,134.24,7.4493]
[1725495516465,0.8725005,134.25,134.24,52.4493]
[1725495520977,0.8725005,134.25,134.24,45.0]
[1725495521272,0.8725005,134.25,134.24,52.4493]
[1725495524273,0.8725005,134.25,134.24,53.93848483]
[1725495524466,0.8725005,134.25,134.24,52.4493]
[1725495524850,0.8725005,134.25,134.24,102.4493]
[1725495525290,0.8725005,134.25,134.24,124.8993]
[1725495525458,0.8725005,134.25,134.24,169.7893]
[1725495531854,5e-07,134.25,134.24,169.7893]
[1725495532278,16.1456,134.34,134.32,26.0566]
[1725495532881,16.1456,134.34,134.33,7.4443]
[1725495533278,6.6512,134.36,134.34,7.4435]
[1725495533891,6.6512,134.36,134.33,7.4443]
[1725495534192,6.6512,134.36,134.19,67.99353331]
[1725495534193,6.6512,134.36,134.26,87.2388]
[1725495534489,6.6512,134.36,134.33,7.4438]
[1725495534694,6.6512,134.36,134.34,52.4437]
[1725495535892,6.6512,134.36,134.34,7.4437]
[1725495538270,16.4969005,134.38,134.34,7.4437]
[1725495538473,16.4969005,134.38,134.35,45.0]
[1725495538671,16.4969005,134.38,134.36,1.48830018]
[1725495538870,16.4969005,134.38,134.35,52.4431]
[1725495539070,16.4969005,134.38,134.36,1.48830291]
[1725495539286,16.4969005,134.38,134.35,52.4431]
[1725495540378,14.9969005,134.38,134.36,7.4426]
[1725495542573,14.9969005,134.38,134.37,45.0]
[1725495542769,6.5809,134.4,134.38,7.4414]
[1725495542989,6.5809,134.4,134.37,52.4419]
[1725495544188,6.5809,134.4,134.38,7.4413]
[1725495544898,6.5809,134.4,134.39,7.441]
[1725495545783,15.8745,134.41,134.39,7.441]
[1725495545987,15.8745,134.41,134.38,26.045]
[1725495547493,24.18666425,134.41,134.36,7.4422]
[1725495549700,6.0974,134.4,134.33,7.4439]
[1725495550005,6.0974,134.4,134.29,55.8458]
[1725495550006,16.70096425,134.39,134.29,55.8458]
[1725495550313,16.70096425,134.39,134.31,7.4453]
[1725495550314,7.4428,134.36,134.31,7.4453]
[1725495551182,15.1179,134.34,134.31,7.4453]
[1725495552304,15.1179,134.34,134.32,18.6118]
[1725495552607,15.1179,134.34,134.33,7.4443]
[1725495553490,15.1179,134.34,134.33,52.4443]
[1725495555087,6.3542,134.35,134.33,52.4443]
[1725495555284,6.3542,134.35,134.34,45.0]
[1725495556695,23.4696,134.37,134.34,45.0]
[1725495558689,6.0435,134.38,134.35,7.4432]
[1725495558882,23.642,134.4,134.36,1.48826689]
[1725495559109,16.2012,134.4,134.37,1.48814062]
[1725495559425,16.2012,134.4,134.36,63.6065]
[1725495559615,16.2012,134.4,134.37,7.442]
[1725495560286,16.2012,134.4,134.38,7.4414]
[1725495561295,16.2012,134.4,134.37,7.4419]
[1725495562026,16.2012,134.4,134.38,1.48806711]
[1725495562188,6.0004,134.41,134.38,8.9294673]
[1725495562801,7.4398,134.42,134.38,7.4414]
[1725495565295,16.0433,134.43,134.38,18.6034]
[1725495565497,16.0433,134.43,134.39,46.48775513]
[1725495565697,16.0433,134.43,134.39,45.0]
[1725495566410,16.0433,134.43,134.4,7.4403]
[1725495567721,4.14949021,134.47,134.4,7.4403]
[1725495567722,7.4378,134.45,134.41,52.4397]
[1725495567897,7.4378,134.45,134.41,53.92740624]
[1725495568098,7.4378,134.45,134.41,52.4397]
[1725495569297,7.4373,134.46,134.42,7.4391]
[1725495569615,7.4373,134.46,134.43,45.0]
[1725495569816,23.3597,134.47,134.43,52.4387]
[1725495571420,23.3597,134.47,134.43,45.0]
[1725495572018,7.4373,134.46,134.43,45.0]
[1725495573426,7.4371,134.46,134.43,45.0]
[1725495574205,23.3597,134.47,134.43,52.4386]
[1725495574704,8.0744165,134.48,134.43,52.4386]
[1725495575107,8.94648075,134.48,134.43,52.4386]
[1725495575323,7.4376,134.46,134.43,45.0]
[1725495576303,8.30996425,134.45,134.4,7.4403]
[1725495576508,7.4383,134.44,134.39,26.0422]
[1725495577208,0.87206425,134.45,134.38,7.4413]
[1725495577209,0.87206425,134.43,134.38,7.4413]
[1725495577420,7.4397,134.42,134.38,7.4413]
[1725495578101,0.87206425,134.43,134.36,18.6058]
[1725495578422,7.44,134.41,134.37,7.442]
[1725495579123,0.87206425,134.44,134.36,18.6058]
[1725495579124,7.4405,134.4,134.36,26.0482]
[1725495579342,7.4415,134.38,134.34,7.4437]
[1725495579634,7.4415,134.38,134.33,18.61]
[1725495579635,7.4422,134.37,134.33,18.61]
[1725495580315,0.87206425,134.36,134.3,18.6142]
[1725495580518,18.6033,134.39,134.27,15.3208]
[1725495580519,0.87206425,134.38,134.27,15.3208]
[1725495580727,7.4449,134.32,134.28,7.447]
[1725495580901,7.4449,134.32,134.27,18.6188]
[1725495581714,61.02728731,134.48,134.28,10.0]
[1725495581909,45.0,134.45,134.28,10.0]
[1725495582528,18.6188,134.44,134.26,10.0]
[1725495582709,45.0,134.43,134.26,10.0]
[1725495582907,7.4455,134.31,134.26,17.4481]
[1725495584005,7.445,134.32,134.28,10.0]
[1725495586526,7.4465,134.29,134.25,17.4485]
[1725495586905,7.4465,134.29,134.25,10.0]
[1725495587336,7.4457,134.31,134.25,28.6209]
[1725495587634,7.4469,134.29,134.25,18.6209]
[1725495588216,7.4471,134.28,134.24,7.4489]
[1725495588434,7.4466,134.29,134.24,7.4489]
[1725495588612,18.6109,134.33,134.23,10.0]
[1725495588613,7.4476,134.28,134.23,10.0]
[1725495588818,7.4476,134.28,134.23,17.4498]
[1725495589739,7.4476,134.28,134.23,18.93898225]
[1725495590123,7.4466,134.29,134.24,7.4492]
[1725495590430,7.4461,134.3,134.26,7.448]
[1725495590641,7.4456,134.31,134.26,7.448]
[1725495590930,7.4456,134.31,134.25,55.0]
[1725495591324,7.4456,134.31,134.26,7.4481]
[1725495591526,18.6103,134.34,134.25,55.0]
[1725495592431,7.4461,134.3,134.26,7.4481]
[1725495592812,7.4456,134.31,134.27,17.4476]
[1725495593015,16.2353,134.35,134.27,10.0]
[1725495593229,16.2353,134.35,134.27,17.4475]
[1725495593230,7.4453,134.32,134.27,17.4475]
[1725495593547,7.4457,134.31,134.27,7.4475]
[1725495594440,7.445,134.32,134.27,7.4475]
[1725495594618,7.445,134.32,134.28,10.0]
[1725495595414,7.4444,134.33,134.28,17.4465]
[1725495595614,7.4444,134.33,134.28,7.4469]
[1725495596434,7.4439,134.34,134.29,17.4463]
[1725495596632,7.4439,134.34,134.29,7.4463]
[1725495597642,7.4444,134.33,134.29,7.4463]
[1725495597945,7.4439,134.34,134.3,7.4456]
[1725495598136,7.4439,134.34,134.29,7.4463]
[1725495598334,7.4439,134.34,134.3,10.0]
[1725495598529,7.4434,134.35,134.31,7.4453]
[1725495598732,7.4428,134.36,134.32,17.4448]
[1725495598943,23.9341,134.37,134.32,17.4448]
[1725495599135,7.4422,134.37,134.32,17.4448]
[1725495600142,7.4416,134.38,134.34,10.0]
[1725495600518,7.4426,134.37,134.34,10.0]
[1725495601731,7.4432,134.36,134.34,10.0]
[1725495605835,16.3958,134.4,134.34,10.0]
[1725495606022,7.4428,134.36,134.34,10.0]
[1725495612450,16.3958,134.4,134.34,10.0]
[1725495612451,7.4423,134.37,134.34,10.0]
[1725495613136,16.3958,134.4,134.3,10.0]
[1725495613137,53.5999,134.4,134.3,10.0]
[1725495613450,7.4447,134.33,134.29,26.0614]
[1725495614242,18.6056,134.37,134.27,32.6108]
[1725495614443,6.5785,134.36,134.27,33.492]
[1725495614642,7.445,134.32,134.27,33.492]
[1725495615255,7.4462,134.3,134.26,18.6205]
[1725495621261,7.446,134.3,134.26,26.0685]
[1725495624461,7.4455,134.31,134.27,17.4475]
[1725495624941,7.445,134.32,134.28,7.447]
[1725495626035,3.28729501,134.35,134.27,10.0]
[1725495626240,6.5785,134.36,134.28,18.6173]
[1725495627259,7.4449,134.32,134.28,26.0643]
[1725495630442,9.84760552,134.36,134.24,6.5383]
[1725495630443,18.6095,134.34,134.25,28.6211]
[1725495630642,18.6095,134.34,134.25,18.6211]
[1725495632340,7.4465,134.29,134.25,26.0697]
[1725495634468,7.4465,134.29,134.25,36.0697]
[1725495648198,3.23064958,134.31,134.23,16.3324]
[1725495648472,3.23064958,134.31,134.22,10.0]
[1725495648473,18.6157,134.3,134.22,18.6249]
[1725495649472,7.4483,134.26,134.22,18.6249]
[1725495649852,6.493,134.31,134.2,17.4514]
[1725495649853,34.583,134.28,134.2,17.4514]
[1725495650058,7.4496,134.24,134.2,10.0]
[1725495651162,7.4496,134.24,134.19,41.1995]
[1725495652769,7.4496,134.24,134.2,7.4514]
[1725495652955,7.4496,134.24,134.2,17.4514]
[1725495654681,34.583,134.28,134.2,10.0]
[1725495654889,7.45,134.23,134.2,10.0]
[1725495656066,7.4506,134.22,134.18,17.4525]
[1725495656270,7.4506,134.22,134.18,7.4525]
[1725495656483,7.4506,134.22,134.17,13.564]
[1725495656680,7.451,134.21,134.17,13.564]
[1725495656891,24.8852,134.26,134.16,36.0869]
[1725495657078,7.4514,134.21,134.16,36.0869]
[1725495657488,7.4516,134.2,134.16,26.0869]
[1725495658903,7.4511,134.21,134.16,26.0869]
[1725495659189,16.0046,134.24,134.16,26.0869]
[1725495659190,7.4516,134.2,134.16,26.0869]
[1725495659580,7.4511,134.21,134.16,26.0869]
[1725495659780,7.4511,134.21,134.16,36.0869]
[1725495659988,7.4511,134.21,134.17,7.4531]
[1725495662193,7.4515,134.2,134.16,36.0869]
[1725495662389,34.6283,134.24,134.16,28.6333]
[1725495663095,7.4522,134.19,134.16,28.6333]
[1725495664391,7.4538,134.16,134.14,0.2311007]
[1725495664705,6.5282,134.21,134.14,0.2311007]
[1725495664990,7.4528,134.18,134.14,0.2311007]
[1725495665696,7.4532,134.17,134.14,0.2311007]
[1725495666698,6.5282,134.21,134.14,17.6858007]
[1725495667282,7.4527,134.18,134.14,17.6858007]
[1725495669591,18.6254,134.23,134.16,10.0]
[1725495671296,7.4516,134.2,134.16,17.4537]
[1725495671683,7.4511,134.21,134.16,17.4537]
[1725495672123,7.4511,134.21,134.17,7.4531]
[1725495677306,7.4506,134.22,134.18,7.4526]
[1725495677506,7.4499,134.23,134.19,7.452]
[1725495678303,18.6214,134.26,134.18,28.6314]
[1725495679402,7.45,134.23,134.19,7.4519]
[1725495680285,6.95,134.23,134.19,7.4519]
[1725495680698,6.95,134.23,134.2,10.0]
[1725495687139,7.4494,134.24,134.2,10.0]
[1725495687301,37.2375,134.28,134.2,10.0]
[1725495687302,18.6169,134.29,134.2,28.628]
[1725495687508,7.4483,134.26,134.21,7.4505]
[1725495692201,7.4483,134.26,134.22,17.4501]
[1725495692513,18.6169,134.29,134.22,17.4501]
[1725495692514,7.4476,134.27,134.22,28.6255]
[1725495692701,7.4476,134.27,134.22,36.0758]
[1725495693604,7.4482,134.26,134.22,36.0758]
[1725495695418,3.17647984,134.3,134.24,28.6229]
[1725495695645,7.4459,134.31,134.26,7.4481]
[1725495695927,22.78,134.33,134.26,7.4481]
[1725495695928,16.2038,134.33,134.26,7.4481]
[1725495696132,19.41086751,134.33,134.26,7.4481]
[1725495696625,55.8263,134.35,134.26,23.6076]
[1725495696832,18.6089,134.35,134.28,10.0]
[1725495697335,7.4444,134.33,134.29,7.4465]
[1725495699509,7.4444,134.33,134.28,17.4469]
[1725495701820,7.4444,134.33,134.29,7.4465]
[1725495703128,7.4437,134.35,134.31,10.0]
[1725495704622,7.4437,134.35,134.31,17.4453]
[1725495704833,7.4428,134.36,134.31,23.7248]
[1725495707239,7.4428,134.36,134.32,24.0289]
[1725495710734,7.4428,134.36,134.32,23.5289]
[1725495712424,7.4428,134.36,134.33,10.0]
[1725495715143,7.4422,134.37,134.33,10.0]
[1725495720335,7.4416,134.38,134.35,10.0]
[1725495720638,18.5952,134.45,134.37,10.0]
[1725495720845,7.4397,134.42,134.37,11.48824364]
[1725495721055,7.4389,134.43,134.39,10.0]
[1725495722529,7.4382,134.44,134.41,10.0]
[1725495722936,7.44,134.41,134.37,26.2689]
[1725495723152,7.4392,134.43,134.39,10.0]
[1725495723334,7.4392,134.43,134.38,7.4412]
[1725495724039,7.4394,134.42,134.38,7.4412]
[1725495724448,7.4394,134.42,134.39,10.0]
[1725495728157,7.44,134.41,134.37,44.8734]
[1725495730750,7.44,134.41,134.37,52.3155]
[1725495735946,18.5941,134.46,134.39,10.0]
[1725495735947,7.4394,134.42,134.39,10.0]
[1725495736149,7.4389,134.43,134.39,17.441]
[1725495736353,7.4389,134.43,134.39,10.0]
[1725495737255,16.3237,134.43,134.32,22.6693]
[1725495737440,7.4439,134.34,134.32,16.0346]
[1725495737645,37.1903,134.45,134.26,10.0]
[1725495737646,15.7939,134.35,134.26,10.0]
[1725495737846,7.4465,134.3,134.26,10.0]
[1725495738056,7.4466,134.29,134.24,49.8454]
[1725495738241,34.4026,134.35,134.24,31.2223]
[1725495738242,7.4477,134.27,134.24,31.2223]
[1725495738444,7.4471,134.29,134.24,31.2223]
[1725495738660,7.4471,134.28,134.24,31.2223]
[1725495738848,7.4466,134.29,134.24,31.2223]
[1725495740133,7.446,134.31,134.26,10.0]
[1725495742745,7.446,134.3,134.26,10.0]
[1725495743253,7.4466,134.29,134.26,10.0]
[1725495743443,7.4471,134.28,134.26,10.0]
[1725495743951,7.4466,134.29,134.26,10.0]
[1725495744471,7.4482,134.27,134.24,21.2223]
[1725495746274,24.9631,134.3,134.21,6.4052]
[1725495746470,7.4499,134.23,134.21,6.4052]
[1725495746653,60.1499,134.29,134.18,17.4526]
[1725495746654,18.6197,134.27,134.18,10.0]
[1725495746854,45.0,134.26,134.18,10.0]
[1725495747170,7.4505,134.22,134.18,10.0]
[1725495747859,7.4504,134.22,134.18,10.0]
[1725495748068,7.451,134.21,134.17,33.8841]
[1725495748371,7.451,134.21,134.17,15.2516]
[1725495752374,18.6197,134.27,134.19,10.0]
[1725495752963,7.4498,134.24,134.19,17.452]